fUST/lending_fUST_20251221
["ID","MTS","AMOUNT","RATE_DAILY","PERIOD"]
[399304127,1766266261147,780.17,9.81e-05,2]
[399304128,1766266261566,877.69,0.00010014,2]
[399304129,1766266261967,975.21,0.00010219,2]
[399304130,1766266278893,4000.0,0.00032877,120]
[399304131,1766266294259,10000.01,0.00012486,2]
[399304132,1766266294286,10000.01,0.00012486,2]
[399304133,1766266294314,10000.01,0.00012486,2]
[399304134,1766266294340,10000.01,0.00012486,2]
[399304135,1766266294365,10000.01,0.00012486,2]
[399304136,1766266294391,10000.01,0.00012486,2]
[399304137,1766266294418,10000.01,0.00012486,2]
[399304138,1766266294443,10000.01,0.00012486,2]
[399304139,1766266294471,10000.01,0.00012486,2]
[399304140,1766266294498,10000.01,0.00012486,2]
[399304141,1766266330940,-496.16296578,0.00012256,2]
[399304142,1766266330970,-300.0,0.00012485,2]
[399304143,1766266333316,150.0,9.282e-05,2]
[399304144,1766266333720,150.0,9.509e-05,2]
[399304145,1766266334232,150.0,9.735e-05,2]
[399304146,1766266334649,150.0,9.962e-05,2]
[399304147,1766266341844,-150.0,0.00010188,2]
[399304148,1766266341876,-171.53,0.00010414,2]
[399304149,1766266341908,-200.12,0.00010641,2]
[399304150,1766266341939,-228.71,0.00010867,2]
[399304151,1766266341970,-257.3,0.00011094,2]
[399304152,1766266342001,-285.89,0.0001132,2]
[399304153,1766266342381,-8187.97685445,0.00012486,2]
[399304154,1766266342487,-10000.01,0.00012486,2]
[399304155,1766266342603,-10000.01,0.00012486,2]
[399304156,1766266342709,-10000.01,0.00012486,2]
[399304157,1766266342818,-10000.01,0.00012486,2]
[399304158,1766266342953,-10000.01,0.00012486,2]
[399304159,1766266362943,-178.95851656,0.00012485,2]
[399304160,1766266362980,-9642.09296688,0.00012486,2]
[399304161,1766266363004,-10000.01,0.00012486,2]
[399304162,1766266363117,-10000.01,0.00012486,2]
[399304163,1766266363263,-10000.01,0.00012486,2]
[399304164,1766266363369,-10000.01,0.00012486,2]
[399304165,1766266364121,-10000.01,0.00012486,2]
[399304166,1766266364250,-10000.01,0.00012486,2]
[399304167,1766266364420,-10000.01,0.00012486,2]
[399304168,1766266364621,-10000.01,0.00012486,2]
[399304169,1766266386419,-300.0,0.00012485,2]
[399304170,1766266386460,-9400.01,0.00012486,2]
[399304171,1766266386755,-10000.01,0.00012486,2]
[399304172,1766266386900,-10000.01,0.00012486,2]
[399304173,1766266387000,-10000.01,0.00012486,2]
[399304174,1766266387152,-10000.01,0.00012486,2]
[399304175,1766266387397,-10000.01,0.00012486,2]
[399304176,1766266387527,-10000.01,0.00012486,2]
[399304177,1766266387661,-10000.01,0.00012486,2]
[399304178,1766266387872,-10000.01,0.00012486,2]
[399304179,1766266388086,-10000.01,0.00012486,2]
[399304180,1766266402168,150.0,8.412e-05,2]
[399304181,1766266402596,150.0,8.617e-05,2]
[399304182,1766266413403,-162.77675585,0.00012485,2]
[399304183,1766266413451,-9674.4564883,0.00012486,2]
[399304184,1766266413585,-10000.01,0.00012486,2]
[399304185,1766266413737,-10000.01,0.00012486,2]
[399304186,1766266413875,-10000.01,0.00012486,2]
[399304187,1766266413971,-10000.01,0.00012486,2]
[399304188,1766266414091,-10000.01,0.00012486,2]
[399304189,1766266414232,-10000.01,0.00012486,2]
[399304190,1766266414349,-10000.01,0.00012486,2]
[399304191,1766266414509,-10000.01,0.00012486,2]
[399304192,1766266414663,-10000.01,0.00012486,2]
[399304193,1766266467372,150.0,8.417e-05,2]
[399304194,1766266467791,228.91,8.622e-05,2]
[399304195,1766266468192,343.36,8.827e-05,2]
[399304196,1766266468581,457.82,9.033e-05,2]
[399304197,1766266468998,572.27,9.238e-05,2]
[399304198,1766266469401,686.73,9.443e-05,2]
[399304199,1766266469805,801.18,9.648e-05,2]
[399304200,1766266470207,915.63,9.854e-05,2]
[399304201,1766266472962,-1030.09,0.00010059,2]
[399304202,1766266472995,-1144.54,0.00010264,2]
[399304203,1766266473025,-650.75,0.00012236,2]
[399304204,1766266473085,-4349.25,0.00012236,2]
[399304205,1766266473162,-5000.0,0.0001236,2]
[399304206,1766266488001,0.01,0.0001236,2]
[399304207,1766266488023,1926.0363302,0.0001236,2]
[399304208,1766266495025,-300.0,0.00012485,2]
[399304209,1766266495802,5000.0,0.0001236,2]
[399304210,1766266496848,297.12159892,0.00012244,2]
[399304211,1766266501163,300.0,0.00012485,2]
[399304212,1766266502398,1200.0,0.00012485,2]
[399304213,1766266502525,300.0,0.00012485,2]
[399304214,1766266502736,154.0,0.00012485,2]
[399304215,1766266504443,152.1728338,0.00032876,120]
[399304216,1766266516082,-232.53822264,0.00012485,2]
[399304217,1766266516113,-174.31735404,0.00012485,2]
[399304218,1766266516272,-9.13091752,0.00012486,2]
[399304219,1766266516309,-10000.01,0.00012486,2]
[399304220,1766266516474,-10000.01,0.00012486,2]
[399304221,1766266516665,-10000.01,0.00012486,2]
[399304222,1766266516819,-10000.01,0.00012486,2]
[399304223,1766266516961,-10000.01,0.00012486,2]
[399304224,1766266517480,-10000.01,0.00012486,2]
[399304225,1766266517509,-10000.01,0.00012486,2]
[399304226,1766266517524,-10000.01,0.00012486,2]
[399304227,1766266517548,-10000.01,0.00012486,2]
[399304229,1766266529666,165.498132,6.022e-05,2]
[399304235,1766266536756,-165.498132,0.00012044,2]
[399304236,1766266536791,-4669.013736,0.00012485,2]
[399304237,1766266536833,-330.986264,0.00012485,2]
[399304238,1766266542676,5000.0,0.00012485,2]
[399304239,1766266543431,150.0,8.923e-05,2]
[399304240,1766266543827,150.0,9.141e-05,2]
[399304241,1766266544233,150.0,9.359e-05,2]
[399304242,1766266544635,150.0,9.576e-05,2]
[399304243,1766266545067,169.42,9.794e-05,2]
[399304244,1766266545626,203.3,0.00010012,2]
[399304245,1766266546499,237.19,0.00010229,2]
[399304246,1766266546925,271.07,0.00010447,2]
[399304247,1766266547360,304.95,0.00010664,2]
[399304248,1766266547779,338.84,0.00010882,2]
[399304249,1766266548490,-2875.24,0.00012486,2]
[399304250,1766266548554,-10000.01,0.00012486,2]
[399304251,1766266548764,-10000.01,0.00012486,2]
[399304252,1766266548967,-10000.01,0.00012486,2]
[399304253,1766266549266,-10000.01,0.00012486,2]
[399304254,1766266549397,-10000.01,0.00012486,2]
[399304255,1766266549535,-10000.01,0.00012486,2]
[399304256,1766266549697,-10000.01,0.00012486,2]
[399304257,1766266595591,-5000.0,0.00012236,2]
[399304258,1766266606314,0.01,0.00012236,2]
[399304259,1766266606338,1975.23492126,0.00012236,2]
[399304260,1766266612900,453.34,8.52e-05,2]
[399304261,1766266613311,906.68,8.728e-05,2]
[399304262,1766266613741,1360.01,8.935e-05,2]
[399304263,1766266614178,1813.35,9.143e-05,2]
[399304264,1766266614608,2266.69,9.351e-05,2]
[399304265,1766266615855,1224.70507874,9.559e-05,2]
[399304266,1766266615880,1495.32492126,9.559e-05,2]
[399304267,1766266615922,3173.36,9.767e-05,2]
[399304268,1766266616047,3626.7,9.974e-05,2]
[399304269,1766266616486,1704.62507874,0.00010182,2]
[399304270,1766266616512,2375.41492126,0.00010182,2]
[399304271,1766266616909,4533.38,0.0001039,2]
[399304272,1766266620784,-5000.0,0.0001236,2]
[399304273,1766266628871,0.01,0.0001236,2]
[399304274,1766266628897,324.16571897,0.0001236,2]
[399304275,1766266634079,-486.41759791,0.00012423,2]
[399304276,1766266634859,201.3903,0.00012423,2]
[399304277,1766266637392,5000.0,0.00012423,2]
[399304278,1766266654042,175.07507874,0.00012423,2]
[399304279,1766266661912,5000.0,0.00012475,2]
[399304280,1766266678855,4224.93492126,0.00012475,2]
[399304281,1766266680018,151.19,5.994e-05,2]
[399304282,1766266680335,151.18,5.994e-05,2]
[399304283,1766266685374,185.17,0.0001,2]
[399304284,1766266687795,112.46,0.000102,2]
[399304285,1766266687819,72.71,0.000102,2]
[399304286,1766266687851,5000.0,0.00012475,2]
[399304287,1766266689857,319.42,8.569e-05,2]
[399304288,1766266690207,185.17,0.000104,2]
[399304289,1766266690266,638.84,8.778e-05,2]
[399304290,1766266690677,958.26,8.987e-05,2]
[399304291,1766266691097,1277.68,9.196e-05,2]
[399304292,1766266691508,1547.93,9.405e-05,2]
[399304293,1766266691533,49.17,9.405e-05,2]
[399304294,1766266691978,1916.52,9.614e-05,2]
[399304295,1766266692638,2235.93,9.823e-05,2]
[399304296,1766266692816,2555.35,0.00010032,2]
[399304297,1766266693259,2874.77,0.00010241,2]
[399304298,1766266693644,368.27,0.0001045,2]
[399304299,1766266696238,-2825.92,0.0001045,2]
[399304300,1766266704579,598.35,0.00012465,2]
[399304301,1766266712399,3749.82,0.00012465,2]
[399304302,1766266736263,-1250.18,0.00012465,2]
[399304303,1766266758061,5000.0,0.00012465,2]
[399304304,1766266768519,399.19,8.547e-05,2]
[399304305,1766266768935,798.38,8.755e-05,2]
[399304306,1766266769357,1197.57,8.963e-05,2]
[399304307,1766266769779,1596.75,9.172e-05,2]
[399304308,1766266770671,1995.94,9.38e-05,2]
[399304309,1766266771189,2395.13,9.589e-05,2]
[399304310,1766266771580,1617.05,9.797e-05,2]
[399304311,1766266771604,1177.27,9.797e-05,2]
[399304312,1766266772011,3193.51,0.00010006,2]
[399304313,1766266772427,3592.7,0.00010214,2]
[399304314,1766266772921,2036.53,0.00010423,2]
[399304315,1766266772948,1955.35,0.00010423,2]
[399304316,1766266781645,5000.0,0.00012475,2]
[399304317,1766266799267,539.0783108,0.00012214,2]
[399304318,1766266805908,2505.5816892,0.00012475,2]
[399304321,1766266824139,3000.0,0.00011972,2]
[399304322,1766266845873,155.48,8.28e-05,2]
[399304323,1766266846282,310.96,8.482e-05,2]
[399304324,1766266846866,466.45,8.684e-05,2]
[399304325,1766266847258,621.93,8.886e-05,2]
[399304326,1766266847675,777.41,9.088e-05,2]
[399304327,1766266848076,932.89,9.29e-05,2]
[399304328,1766266848509,1088.38,9.492e-05,2]
[399304329,1766266848917,1243.86,9.694e-05,2]
[399304330,1766266849326,1399.34,9.896e-05,2]
[399304331,1766266849744,3.31,0.00010098,2]
[399304332,1766266849772,1551.51,0.00010098,2]
[399304333,1766266865941,334.84,0.0001,2]
[399304334,1766266868099,334.84,0.000102,2]
[399304335,1766266870470,334.84,0.000104,2]
[399304336,1766266872945,334.84,0.000106,2]
[399304337,1766266875365,334.84,0.000108,2]
[399304338,1766266877817,334.84,0.00011,2]
[399304339,1766266921705,150.0,8.253e-05,2]
[399304340,1766266922131,150.0,8.455e-05,2]
[399304341,1766266922563,150.0,8.656e-05,2]
[399304342,1766266922980,186.58,8.857e-05,2]
[399304343,1766266923412,233.22,9.059e-05,2]
[399304344,1766266923805,279.87,9.26e-05,2]
[399304345,1766266924262,326.51,9.461e-05,2]
[399304346,1766266924714,373.16,9.663e-05,2]
[399304347,1766266925105,419.8,9.864e-05,2]
[399304348,1766266925559,466.45,0.00010065,2]
[399304349,1766266938098,216.88799966,0.00012215,2]
[399304350,1766266988309,3486.98200034,0.00012445,2]
[399304351,1766266988334,1513.01799966,0.00012445,2]
[399304352,1766266993371,150.0,8.214e-05,2]
[399304353,1766266993763,150.0,8.414e-05,2]
[399304354,1766266994175,150.0,8.614e-05,2]
[399304355,1766266994596,150.0,8.815e-05,2]
[399304356,1766266994993,150.0,9.015e-05,2]
[399304357,1766266995404,150.0,9.215e-05,2]
[399304358,1766267011435,5000.0,0.00012445,2]
[399304359,1766267035830,2586.99200034,0.00012445,2]
[399304360,1766267035857,2413.00799966,0.00012445,2]
[399304361,1766267059444,5000.0,0.00012445,2]
[399304362,1766267060315,150.0,8.261e-05,2]
[399304363,1766267060713,193.99,8.463e-05,2]
[399304364,1766267061163,290.99,8.664e-05,2]
[399304365,1766267061580,387.99,8.866e-05,2]
[399304366,1766267061977,484.98,9.067e-05,2]
[399304367,1766267062440,581.98,9.269e-05,2]
[399304368,1766267063347,497.07200034,9.47e-05,2]
[399304369,1766267063374,181.90799966,9.47e-05,2]
[399304370,1766267063761,775.97,9.672e-05,2]
[399304371,1766267064179,872.97,9.873e-05,2]
[399304372,1766267064676,969.96,0.00010075,2]
[399304373,1766267083180,5000.0,0.00012445,2]
[399304374,1766267086297,150.0,9e-07,2]
[399304377,1766267106427,1000.0,0.00032876,120]
[399304378,1766267106624,2049.20200034,0.00012445,2]
[399304379,1766267138669,150.0,8.189e-05,2]
[399304380,1766267139099,277.7,8.389e-05,2]
[399304381,1766267139502,416.55,8.589e-05,2]
[399304382,1766267139919,555.4,8.789e-05,2]
[399304383,1766267140316,694.25,8.988e-05,2]
[399304384,1766267140747,833.1,9.188e-05,2]
[399304385,1766267141129,971.95,9.388e-05,2]
[399304386,1766267141548,1110.8,9.588e-05,2]
[399304387,1766267141977,1249.66,9.787e-05,2]
[399304388,1766267142400,1388.51,9.987e-05,2]
[399304390,1766267214788,150.0,8.257e-05,2]
[399304391,1766267215224,273.09,8.459e-05,2]
[399304392,1766267215617,409.64,8.66e-05,2]
[399304393,1766267216034,546.19,8.862e-05,2]
[399304394,1766267216480,682.74,9.063e-05,2]
[399304395,1766267216881,819.28,9.264e-05,2]
[399304396,1766267217293,955.83,9.466e-05,2]
[399304397,1766267217712,1092.38,9.667e-05,2]
[399304398,1766267218644,1228.93,9.869e-05,2]
[399304399,1766267219096,1365.47,0.0001007,2]
[399304400,1766267234960,2476.46,0.00012267,2]
[399304401,1766267291344,150.0,8.282e-05,2]
[399304402,1766267291777,150.0,8.484e-05,2]
[399304403,1766267292185,199.11,8.686e-05,2]
[399304404,1766267292596,265.48,8.888e-05,2]
[399304405,1766267293014,331.84,9.09e-05,2]
[399304406,1766267293407,398.21,9.292e-05,2]
[399304407,1766267293870,464.58,9.494e-05,2]
[399304408,1766267294290,530.95,9.696e-05,2]
[399304409,1766267294701,597.32,9.898e-05,2]
[399304410,1766267295109,663.69,0.000101,2]
[399304411,1766267363762,150.0,9.225e-05,2]
[399304412,1766267364255,150.0,9.45e-05,2]
[399304413,1766267364651,172.43,9.675e-05,2]
[399304414,1766267365089,229.91,9.9e-05,2]
[399304415,1766267365506,287.38,0.00010125,2]
[399304416,1766267365945,344.86,0.0001035,2]
[399304417,1766267366362,402.33,0.00010575,2]
[399304418,1766267366775,459.81,0.000108,2]
[399304419,1766267367188,517.29,0.00011025,2]
[399304420,1766267367663,574.76,0.0001125,2]
[399304421,1766267393121,150.0,9e-07,2]
[399304422,1766267394726,150.0,9e-07,2]
[399304423,1766267395213,150.0,9e-07,2]
[399304424,1766267396284,150.0,9e-07,2]
[399304425,1766267397299,150.0,9e-07,2]
[399304463,1766267432572,-2000.0,0.00012144,2]
[399304470,1766267432631,-3000.0,0.00012144,2]
[399304472,1766267432640,-591.0,0.00012144,2]
[399304474,1766267432650,-1662.22,0.00012267,2]
[399304476,1766267432659,-454.73076073,0.00012378,2]
[399304478,1766267432670,-194.01021232,0.00012378,2]
[399304479,1766267432679,-608.67835887,0.00012378,2]
[399304480,1766267432688,-300.0,0.00012378,2]
[399304481,1766267432697,-300.0,0.00012378,2]
[399304482,1766267432710,-1200.0,0.00012378,2]
[399304483,1766267432719,-300.0,0.00012378,2]
[399304484,1766267432728,-27481.64902515,0.00012379,2]
[399304581,1766267438315,150.0,8.236e-05,2]
[399304587,1766267438576,-1028.09217635,0.00012255,2]
[399304588,1766267438585,-200538.37134191,0.00012379,2]
[399304589,1766267438636,-72391.16867295,0.00012379,2]
[399304590,1766267438647,-15650.0000001,0.00012379,2]
[399304591,1766267438696,-745.25,0.00012379,2]
[399304597,1766267439205,150.0,8.437e-05,2]
[399304598,1766267439632,150.0,8.638e-05,2]
[399304599,1766267440039,150.0,8.839e-05,2]
[399304600,1766267440485,150.0,9.039e-05,2]
[399304605,1766267440844,-1029.00146496,0.00012379,2]
[399304606,1766267440883,150.0,9.24e-05,2]
[399304619,1766267441344,150.0,9.441e-05,2]
[399304620,1766267442244,150.0,9.642e-05,2]
[399304621,1766267442655,157.76,9.843e-05,2]
[399304670,1766267443845,-5000.0,0.00012255,2]
[399304672,1766267443855,-8018.84619154,0.00012379,2]
[399304704,1766267446694,-305015.86515474,0.00012379,2]
[399304706,1766267448045,-5164.72174361,0.00012379,2]
[399304707,1766267850849,5000.0,0.00012,2]
[399304708,1766268056752,5000.0,0.00012,2]
[399304709,1766268080451,5000.0,0.00012,2]
[399304710,1766268103731,2892.24,0.00012,2]
[399304711,1766268191971,6250.0,0.00030137,120]
[399304712,1766268436835,3000.0,0.0003287,120]
[399304713,1766268446800,1363.54512776,0.00011371,2]
[399304714,1766268483933,169.31,5.994e-05,2]
[399304715,1766268484356,169.31,5.994e-05,2]
[399304716,1766268511366,250.0,0.0001147,2]
[399304717,1766268595497,587.09335818,0.00011371,2]
[399304718,1766268598076,2346.02505928,0.00011371,2]
[399304749,1766268631662,-519.41822053,0.00011848,2]
[399304751,1766268631674,-2569.98346172,0.00011848,2]
[399304753,1766268631684,-1910.59831775,0.00011848,2]
[399304755,1766268631693,-51.00509005,0.00011848,2]
[399304757,1766268631703,-535.99490995,0.00011848,2]
[399304759,1766268631712,-825.0,0.0001195,2]
[399304761,1766268631721,-1200.0,0.00011968,2]
[399304763,1766268631730,-300.0,0.00011968,2]
[399304765,1766268631740,-300.0,0.00011968,2]
[399304768,1766268631749,-300.0,0.00011968,2]
[399304771,1766268631758,-300.0,0.00011968,2]
[399304773,1766268631766,-390.33611065,0.00011968,2]
[399304777,1766268631788,-809.66388935,0.00011968,2]
[399304779,1766268631797,-502.00419475,0.00011969,2]
[399304781,1766268631806,-502.8069387,0.0001197,2]
[399304783,1766268631815,-787.5749772,0.0001197,2]
[399304820,1766268642911,-7156.0,0.0001197,2]
[399304828,1766268645997,-426.07485121,0.00011969,2]
[399304830,1766268646007,-251.27514879,0.0001197,2]
[399304832,1766268646019,-41805.14987401,0.0001197,2]
[399304833,1766268646028,-3495.98688062,0.00011975,2]
[399304834,1766268660778,150.0,8.708e-05,2]
[399304835,1766268661742,214.63,8.921e-05,2]
[399304836,1766268661822,321.95,9.133e-05,2]
[399304837,1766268662019,429.27,9.345e-05,2]
[399304838,1766268662436,536.59,9.558e-05,2]
[399304839,1766268662868,643.9,9.77e-05,2]
[399304840,1766268663303,751.22,9.983e-05,2]
[399304841,1766268663703,858.54,0.00010195,2]
[399304842,1766268664110,965.85,0.00010407,2]
[399304843,1766268664509,1073.17,0.0001062,2]
[399304845,1766268736220,150.0,8.742e-05,2]
[399304846,1766268736623,150.0,8.955e-05,2]
[399304847,1766268737036,150.0,9.168e-05,2]
[399304848,1766268737430,189.62,9.381e-05,2]
[399304849,1766268737853,237.02,9.594e-05,2]
[399304850,1766268738285,284.43,9.808e-05,2]
[399304851,1766268745284,-331.83,0.00010021,2]
[399304852,1766268745310,-220.36031465,0.00010234,2]
[399304853,1766268749806,-158.87968535,0.00010234,2]
[399304854,1766268749830,-141.12031465,0.00010447,2]
[399304855,1766268750858,-177.68532822,0.00010447,2]
[399304856,1766268753382,-107.83435713,0.00010447,2]
[399304857,1766268753411,-97.56047047,0.0001066,2]
[399304858,1766268756589,-195.8591517,0.0001066,2]
[399304859,1766268758207,-161.66419053,0.0001066,2]
[399304860,1766268809110,150.0,8.051e-05,2]
[399304861,1766268809517,150.0,8.248e-05,2]
[399304862,1766268809912,150.0,8.444e-05,2]
[399304863,1766268810331,150.0,8.64e-05,2]
[399304864,1766268810733,150.0,8.837e-05,2]
[399304865,1766268811131,150.0,9.033e-05,2]
[399304866,1766269018913,4499.0,0.00032877,120]
[399304867,1766269155494,7307.0,0.00032877,120]
[399304868,1766269234348,3780.4059249,0.00032876,120]
[399304869,1766269243776,4400.0,0.00032877,120]
[399304887,1766269313694,1000.2,0.00032877,120]
[399304888,1766269332264,1000.0,0.00032877,120]
[399304890,1766269450340,-391.10989952,0.00011371,3]
[399304891,1766269450370,-653.11390488,0.00011371,2]
[399304892,1766269511615,709.60463575,0.00011371,3]
[399304913,1766269554616,1249.2296519,0.00011545,2]
[399304917,1766269612593,-285.49605301,0.00011545,3]
[399304918,1766269612624,-510.88534633,0.00011545,2]
[399304919,1766269612655,-583.0,0.00011613,2]
[399304920,1766269612688,-1200.0,0.0001173,2]
[399304921,1766269612715,-1737.18520132,0.00011731,2]
[399304922,1766269612752,-1366.87679868,0.00011731,2]
[399304923,1766269612781,-2475.28583286,0.00011777,2]
[399304924,1766269612809,-300.0,0.0001185,2]
[399304925,1766269612839,-300.0,0.0001185,2]
[399304926,1766269612878,-1200.0,0.00011851,2]
[399304927,1766269612907,-318.31153251,0.00011851,2]
[399304928,1766269612936,-298.25239584,0.00011851,2]
[399304929,1766269612966,-256.20790074,0.00011851,2]
[399304930,1766269612997,-427.86792639,0.00011851,2]
[399304931,1766269613029,-500.0,0.00011851,2]
[399304932,1766269613062,-187.70768194,0.00011851,2]
[399304933,1766269613806,-1140.21982464,0.00011854,2]
[399304934,1766269613834,-10000.01,0.00011854,2]
[399304935,1766269613862,-10000.01,0.00011854,2]
[399304936,1766269613882,-10000.01,0.00011854,2]
[399304937,1766269613903,-10000.01,0.00011854,2]
[399304938,1766269613919,-10000.01,0.00011854,2]
[399304940,1766269615141,-2450.8973556,0.00011854,2]
[399304941,1766269626636,-303.30568159,0.00011762,2]
[399304942,1766269626674,-174.0,0.00011853,2]
[399304943,1766269626716,-300.0,0.00011853,2]
[399304944,1766269626801,-8445.39863682,0.00011854,2]
[399304945,1766269626836,-10000.01,0.00011854,2]
[399304946,1766269626973,-10000.01,0.00011854,2]
[399304949,1766269640263,-300.0,0.00011507,2]
[399304950,1766269643418,300.0,0.00011507,2]
[399304951,1766269647666,1198.23849,0.00032877,120]
[399304952,1766269654456,893.0933384,0.00011269,2]
[399304954,1766269659246,-154.0,0.00011534,2]
[399304955,1766269659280,-4692.01,0.00011736,2]
[399304956,1766269659433,-307.99,0.00011736,2]
[399304957,1766269665802,5000.0,0.00011736,2]
[399304959,1766269684118,-300.0,0.00011853,2]
[399304960,1766269684187,-3522.8966616,0.00011854,2]
[399304961,1766269684323,-10000.01,0.00011854,2]
[399304962,1766269684535,-10000.01,0.00011854,2]
[399304963,1766269684673,-10000.01,0.00011854,2]
[399304964,1766269684813,-10000.01,0.00011854,2]
[399304965,1766269685112,-10000.01,0.00011854,2]
[399304966,1766269685253,-10000.01,0.00011854,2]
[399304967,1766269685519,-10000.01,0.00011854,2]
[399304968,1766269685743,-10000.01,0.00011854,2]
[399304969,1766269686105,423.72037392,0.00010618,2]
[399304971,1766269696911,-5000.0,0.00011736,2]
[399304973,1766269704742,150.0,8.192e-05,2]
[399304974,1766269705166,150.0,8.391e-05,2]
[399304975,1766269705567,150.0,8.591e-05,2]
[399304976,1766269706148,150.0,8.791e-05,2]
[399304977,1766269706603,150.0,8.991e-05,2]
[399304979,1766269714875,-5000.0,0.00011736,2]
[399304980,1766269715153,-273.00721864,0.00011853,2]
[399304981,1766269715185,-208.77667709,0.00011853,2]
[399304982,1766269715281,-8612.74183462,0.00011854,2]
[399304983,1766269715309,-10000.01,0.00011854,2]
[399304984,1766269715504,-10000.01,0.00011854,2]
[399304985,1766269716380,6993.50488201,0.0001,2]
[399304986,1766269726893,-183.06178598,0.00011853,2]
[399304987,1766269726929,-9633.88642804,0.00011854,2]
[399304993,1766269744010,-250.0,0.00011534,2]
[399304994,1766269749456,250.0,0.00011507,2]
[399304995,1766269770438,150.0,8.156e-05,2]
[399304996,1766269770857,150.0,8.355e-05,2]
[399304997,1766269771273,150.0,8.554e-05,2]
[399304998,1766269771711,150.0,8.753e-05,2]
[399304999,1766269772136,158.8,8.952e-05,2]
[399305000,1766269772564,190.56,9.151e-05,2]
[399305001,1766269773019,222.32,9.35e-05,2]
[399305002,1766269773471,254.08,9.548e-05,2]
[399305003,1766269773900,285.84,9.747e-05,2]
[399305004,1766269774770,317.6,9.946e-05,2]
[399305005,1766269803228,534.81887805,0.00011269,2]
[399305006,1766269810611,300.0,0.00011534,2]
[399305008,1766269819369,260.0,0.00011534,2]
[399305009,1766269819777,5500.0,0.00032877,120]
[399305018,1766269831906,-5000.0,0.00011619,2]
[399305019,1766269831916,-584.0,0.00011619,2]
[399305020,1766269831925,-500.66763941,0.00011678,2]
[399305021,1766269831934,-300.0,0.00011735,2]
[399305022,1766269831943,-1200.0,0.00011735,2]
[399305023,1766269831952,-5000.0,0.00011736,2]
[399305024,1766269831961,-14098.65175731,0.00011854,2]
[399305025,1766269831972,-551.15446361,0.00011854,2]
[399305079,1766269838041,-191.10505305,0.00011853,2]
[399305080,1766269838051,-641.02415014,0.00011854,2]
[399305081,1766269838063,-2694.248208,0.00011854,2]
[399305082,1766269838098,-2905.13,0.00011854,2]
[399305085,1766269839997,5900.0,0.00032877,120]
[399305086,1766269840401,-521.5586811,0.00011854,2]
[399305087,1766269841167,150.0,8.343e-05,2]
[399305088,1766269841569,150.0,8.547e-05,2]
[399305089,1766269841984,150.0,8.75e-05,2]
[399305105,1766269851677,5000.0,0.00011609,2]
[399305106,1766269851712,-848.68064314,0.00011736,2]
[399305107,1766269852634,3800.203,0.00032877,120]
[399305108,1766269873863,5000.0,0.00011744,2]
[399305109,1766269881075,-546.01259445,0.00011754,2]
[399305110,1766269887840,3299.859284,0.00011055,2]
[399305111,1766269897611,5000.0,0.00011754,2]
[399305112,1766269907936,150.0,8.491e-05,2]
[399305113,1766269908547,150.0,8.699e-05,2]
[399305114,1766269908737,207.42,8.906e-05,2]
[399305115,1766269909150,100.7055271,9.113e-05,2]